Cogmind - Beta 13 @@@ ROGUE MODE // 2024.06.29 @ 12:02:28 Player: RAT Result: Destroyed by G-47 Trooper with Particle Gun Performance ------------- Evolutions (2) 1000 Regions Visited (5) 1000 Robots Destroyed (31) 155 Value Destroyed (1042) 1042 Prototype IDs (1) 20 Alien Tech Used (0) 0 Bonus (0) 0 TOTAL SCORE: 3217 Bonus ------- None Cogmind --------- Core Integrity 0/550 Matter 284/300 Energy 1/100 System Corruption 0% Temperature Warm (129) Movement Core (50) Location -8/Materials Parts ------- > --- POWER (2) -------- (None) > --- PROPULSION (2) --- (None) > --- UTILITY (4) ------ (None) > --- WEAPON (3) ------- Particle Gun > --- INVENTORY (5) ---- (None) Peak State ------------ > --- POWER ------------ Light Ion Engine Light Deuterium Engine > --- PROPULSION ------- Light Treads Light Treads > --- UTILITY ---------- Sensor Array Advanced Targeting Computer Transmission Jammer > --- WEAPON ----------- Small Laser Advanced Assault Cannon > --- INVENTORY -------- Carbon-fiber Leg Flight Unit Flight Unit EM Shotgun Lightning Gun [Rating: 20] Favorites ----------- Power Light Deuterium Engine Engine Light Deuterium Engine Propulsion Aluminum Leg Treads Light Treads Leg Aluminum Leg Wheel Compact Wheel Hover Unit Airjet Flight Unit Flight Unit Utility Advanced Targeting Computer Device ECM Suite Storage Small Storage Unit Processor Advanced Targeting Computer Weapon Grenade Launcher Energy Gun Small Laser Energy Cannon Particle Cannon Ballistic Gun Heavy Assault Rifle Ballistic Cannon Advanced Assault Cannon Launcher Grenade Launcher Impact Weapon Hammer Build | -11 -10 -10 -9 -9 -8 ------- Run | Yrd Mat Min Mat Min Mat Slots Evolved 4 | . . . 2 . 2 Power 1 | . . . 1 . . Propulsion . | . . . . . . Utility 2 | . . . 1 . 1 Weapon 1 | . . . . . 1 Parts Attached 49 | 6 2 4 13 11 13 Power 7 | 1 . 1 3 1 1 Engine 7 | 1 . 1 3 1 1 Core . | . . . . . . Reactor . | . . . . . . Propulsion 15 | 2 . 2 3 6 2 Treads 4 | . . . 2 2 . Leg 3 | 2 . . 1 . . Wheel 2 | . . 2 . . . Hover 2 | . . . . . 2 Flight 4 | . . . . 4 . Utility 7 | 1 1 . 2 2 1 Device 4 | . 1 . 1 2 . Storage 1 | 1 . . . . . Processor 2 | . . . 1 . 1 Hackware . | . . . . . . Protection . | . . . . . . Artifact . | . . . . . . Weapon 20 | 2 1 1 5 2 9 Energy Gun 14 | 2 . 1 3 1 7 Energy Cannon 1 | . . . . . 1 Ballistic Gun 1 | . . . 1 . . Ballistic Cannon 1 | . . . . 1 . Launcher 2 | . 1 . . . 1 Special Weapon . | . . . . . . Impact Weapon 1 | . . . 1 . . Slashing Weapon . | . . . . . . Piercing Weapon . | . . . . . . Special Melee Weapon . | . . . . . . Unidentified Prototypes 1 | . . . 1 . . Parts Lost 32 | . . 3 10 6 13 Power 7 | . . 1 3 2 1 Propulsion 6 | . . 1 2 1 2 Utility 5 | . . . 2 2 1 Weapon 14 | . . 1 3 1 9 Highest Loss Streak 12 | . . 2 9 4 12 To Critical Strikes . | . . . . . . Average Slot Usage (%) 72 | . 93 91 69 78 35 Engine 12 | . 14 13 17 16 3 Treads 4 | . . . 12 10 . Leg 9 | . 28 25 . . . Wheel 1 | . . 1 4 . . Hover 2 | . . . . . 12 Flight 2 | . . . . 10 . Device 8 | . 7 14 4 14 . Storage 5 | . 14 14 3 . . Processor 5 | . . . 5 11 7 Energy Gun 7 | . 16 7 10 7 3 Ballistic Cannon 3 | . . . . 7 5 Launcher 5 | . 11 14 1 . 2 Naked Turns . | . . . . . . Heaviest Build 18 | 13 17 17 18 17 13 Greatest Support 40 | 20 20 26 40 40 16 Greatest Overweight (x) 5 | . . 1 5 1 2 Average Overweight (x) . | . . . . . . Largest Inventory Capacity 8 | 8 8 8 8 5 5 Average Capacity 6 | 6 8 8 5 5 5 Most Carried 5 | 5 5 4 5 5 5 Average Carried 3 | 3 3 3 2 4 1 Final Capacity 8 | 8 8 8 5 5 5 Final Carried 4 | 3 4 1 4 4 . Class Distribution -------------------- 83% | Mutant 16% | Scavenger-Mutant Dominant Class ---------------- Mutant | -10/Materials Mutant | -10/Mines Mutant | -9/Materials Scavenger-Mutant | -9/Mines Mutant | -8/Materials Resources | -11 -10 -10 -9 -9 -8 ----------- Run | Yrd Mat Min Mat Min Mat Matter Collected 863 | 228 . 22 196 162 255 Remotely . | . . . . . . Salvage Created 1024 | . . 92 285 78 569 Parts 53 | . . 10 23 2 18 Haulers Intercepted . | . . . . . . Recyclers Shooed 1 | . . . . 1 . Parts Field Recycled . | . . . . . . Retrieved Matter . | . . . . . . Parts Self-Destructed . | . . . . . . Prevented . | . . . . . . Kills | -11 -10 -10 -9 -9 -8 ------- Run | Yrd Mat Min Mat Min Mat Combat Hostiles Destroyed 27 | . . 7 7 . 13 Guns 12 | . . . 6 . 6 Cannons 5 | . . . . . 5 AOE 10 | . . 7 1 . 2 Classes Destroyed 6 | . . 2 3 1 . Worker 1 | . . . 1 . . Recycler 1 | . . . . 1 . Watcher 2 | . . . 1 . 1 Swarmer 7 | . . 3 4 . . Grunt 12 | . . 4 . . 8 Sentry 8 | . . . 3 . 5 Best Kill Streak 5 | . . 5 4 1 5 Combat Bots Only 5 | . . 5 3 . 5 Max Kills in Single Turn 2 | . . 1 1 1 2 Gunslinging . | . . . . . . Exploded 2 | . . 1 1 . 2 Melee . | . . . . . . Uniques/NPCs Destroyed . | . . . . . . Combat | -11 -10 -10 -9 -9 -8 -------- Run | Yrd Mat Min Mat Min Mat Hostile Shots Fired 349 | . . 37 153 43 116 Missed 91 | . . 8 36 16 31 Damage Taken 3431 | . . 488 1209 317 1417 Core 1011 | . . 129 264 60 558 Absorbed by Shields . | . . . . . . Core Remaining (%) 55 | 100 . 48 . 19 . Volleys Fired 107 | . . 23 21 3 60 Largest 2 | . . 2 2 1 2 Hottest 100 | . . 70 73 48 100 Shots Fired 130 | . . 33 29 3 65 Gun 77 | . . 17 28 . 32 Cannon 36 | . . . . 3 33 Launcher 17 | . . 16 1 . . Special . | . . . . . . Kinetic 35 | . . . 7 3 25 Thermal 37 | . . 10 3 . 24 Explosive 17 | . . 16 1 . . Electromagnetic 41 | . . 7 18 . 16 Robot Hit Streak 26 | . . 4 10 . 26 Robot Miss Streak 6 | . . 3 6 . 2 Penetration Max . | . . . . . . Secondary Targets 1 | . . . . . 1 Max Gunslinging Chain 1 | . . . . . 1 Shots Hit Robots 88 | . . 12 19 . 57 Core Hits 51 | . . 11 13 . 27 Critical Kills . | . . . . . . Critical Parts Destroyed . | . . . . . . Critical Strikes . | . . . . . . Melee Attacks . | . . . . . . Impact . | . . . . . . Slashing . | . . . . . . Piercing . | . . . . . . Sneak Attacks . | . . . . . . Combat Hostiles . | . . . . . . Follow-up Attacks . | . . . . . . Damage Inflicted 2862 | . . 693 446 33 1690 Guns 948 | . . 62 368 . 518 Cannons 739 | . . . . 25 714 Explosions 1165 | . . 629 78 . 458 Melee . | . . . . . . Ramming 10 | . . 2 . 8 . Kinetic 655 | . . . 79 25 551 Thermal 952 | . . 89 . . 863 Explosive 641 | . . 563 78 . . Electromagnetic 604 | . . 39 289 . 276 Impact . | . . . . . . Slashing . | . . . . . . Piercing . | . . . . . . Highest Corruption . | . . . . . . Average Corruption . | . . . . . . Corruption Purged . | . . . . . . Corruption Blocked . | . . . . . . Overload Shots . | . . . . . . Overflow Damage 65 | . . 54 . . 11 Projectiles . | . . . . . . Explosions 65 | . . 54 . . 11 Melee . | . . . . . . Knockbacks 1 | . . . . . 1 Impact . | . . . . . . Kinetic 1 | . . . . . 1 Secondary . | . . . . . . Self-Inflicted Damage 134 | . . 92 . . 42 Shots 6 | . . 5 . . 1 Rammed 1 | . . . . 1 . Targets Rammed 3 | . . 1 . 2 . Kicked 1 | . . 1 . . . Crushed 1 | . . . . 1 . Highest Temperature 246 | . . 157 43 24 246 Average Temperature 62 | . . 78 13 13 83 Received Heat Transfer 1155 | . . 222 234 177 522 Siege Activations . | . . . . . . Robots Corrupted . | . . . . . . Combat Hostiles . | . . . . . . Parts Fried . | . . . . . . Impact Corruptions . | . . . . . . Robots Melted . | . . . . . . Combat Hostiles . | . . . . . . Parts Melted 5 | . . . . . 5 Heat Transferred 1501 | . . 150 . . 1351 Parts Sabotaged . | . . . . . . Parts Stolen . | . . . . . . Parts Stripped . | . . . . . . Power Chain Reactions 3 | . . 1 . . 2 Alert | -11 -10 -10 -9 -9 -8 ------- Run | Yrd Mat Min Mat Min Mat Peak Influence 397 | . . 218 195 125 397 Initial 75 | . . . 6 75 26 Average 94 | . . 53 98 106 183 Maximum Alert Level 1 | . . 1 . . 1 Low Security (%) 90 | 100 100 98 100 100 54 Level 1 9 | . . 1 . . 45 Level 2 . | . . . . . . Level 3 . | . . . . . . Level 4 . | . . . . . . Level 5 . | . . . . . . High Security . | . . . . . . Max Security . | . . . . . . Squads Dispatched 3 | . . . 1 . 2 Investigation . | . . . . . . Extermination . | . . . . . . Reinforcement 3 | . . . 1 . 2 Assault . | . . . . . . Garrison . | . . . . . . Intercept . | . . . . . . Searches Triggered . | . . . . . . Construction Impeded . | . . . . . . Haulers Reinforced . | . . . . . . Active Scanning Responses . | . . . . . . Cargo Convoy Interrupts . | . . . . . . Stealth | -11 -10 -10 -9 -9 -8 --------- Run | Yrd Mat Min Mat Min Mat Distress Signals 4 | . 1 . 1 . 2 Communications Jammed . | . . . . . . Distress Signals . | . . . . . . Times Spotted 59 | . 1 7 19 6 26 Peak Tracking Total 11 | . 3 3 7 3 11 Tactical Retreats 5 | . 1 . . 1 3 Traps | -11 -10 -10 -9 -9 -8 ------- Run | Yrd Mat Min Mat Min Mat Traps Triggered . | . . . . . . Indirectly . | . . . . . . Trap Hack Attempts . | . . . . . . Triggered . | . . . . . . Disarmed . | . . . . . . Reprogrammed . | . . . . . . Reused . | . . . . . . Traps Extracted . | . . . . . . Installed . | . . . . . . Triggered . | . . . . . . Machines | -11 -10 -10 -9 -9 -8 ---------- Run | Yrd Mat Min Mat Min Mat Machines Disabled 2 | . . 2 . . . Max in Single Turn 1 | . . 1 . . . Machines Repaired . | . . . . . . Machines Dismantled . | . . . . . . Machines Sabotaged . | . . . . . . Overloaded Fab Kills . | . . . . . . Hacking | -11 -10 -10 -9 -9 -8 --------- Run | Yrd Mat Min Mat Min Mat Machines Accessed 1 | . . . . 1 . Terminals . | . . . . . . Fabricators . | . . . . . . Repair Stations . | . . . . . . Recycling Units . | . . . . . . Scanalyzers . | . . . . . . Garrison Access . | . . . . . . Total Hacks 1 | . . . . 1 . Successful 1 | . . . . 1 . Failed . | . . . . . . Catastrophic . | . . . . . . Database Lockouts . | . . . . . . Manual . | . . . . . . Terminals . | . . . . . . Fabricators . | . . . . . . Repair Stations . | . . . . . . Recycling Units . | . . . . . . Scanalyzers . | . . . . . . Garrison Access . | . . . . . . Terminal Hacks 1 | . . . . 1 . Open Door 1 | . . . . 1 . Fabricator Hacks . | . . . . . . Repair Station Hacks . | . . . . . . Recycling Unit Hacks . | . . . . . . Scanalyzer . | . . . . . . Garrison Access Hacks . | . . . . . . Unauthorized Hacks . | . . . . . . Terminals . | . . . . . . Fabricators . | . . . . . . Repair Stations . | . . . . . . Recycling Units . | . . . . . . Scanalyzers . | . . . . . . Garrison Access . | . . . . . . Data Cores Recovered . | . . . . . . Used . | . . . . . . Hacking Detections . | . . . . . . Full Trace Events . | . . . . . . Feedback Events . | . . . . . . Feedback Blocked . | . . . . . . Robot Schematics Acquired . | . . . . . . Robots Built . | . . . . . . Authchips . | . . . . . . Time . | . . . . . . Total Robot Build Rating . | . . . . . . Part Schematics Acquired . | . . . . . . Parts Built . | . . . . . . Authchips . | . . . . . . Time . | . . . . . . Total Part Build Rating . | . . . . . . Parts Repaired . | . . . . . . Time . | . . . . . . Parts Recycled . | . . . . . . Recycled Matter . | . . . . . . Retrieved Matter . | . . . . . . Retrieved Components . | . . . . . . Parts Scanalyzed . | . . . . . . Part Schematics Acquired . | . . . . . . Parts Damaged . | . . . . . . Bothacking | -11 -10 -10 -9 -9 -8 ------------ Run | Yrd Mat Min Mat Min Mat Used RIF Installer . | . . . . . . Robots Hacked . | . . . . . . Non-combat . | . . . . . . Combat . | . . . . . . Robot Hacks Applied . | . . . . . . Relay Couplers Released . | . . . . . . Fabnet Peak Effective % . | . . . . . . Robots Rewired . | . . . . . . Allies Hacked . | . . . . . . Hacks Repelled . | . . . . . . Allies | -11 -10 -10 -9 -9 -8 -------- Run | Yrd Mat Min Mat Min Mat Total Allies . | . . . . . . Largest Group . | . . . . . . Highest-Rated Group . | . . . . . . Highest-Rated Ally . | . . . . . . Total Orders . | . . . . . . Ally Attacks . | . . . . . . Total Damage . | . . . . . . Kills . | . . . . . . Allies Corrupted . | . . . . . . Allies Melted . | . . . . . . Intel | -11 -10 -10 -9 -9 -8 ------- Run | Yrd Mat Min Mat Min Mat Robot Analysis Total . | . . . . . . Derelict Logs Recovered 2 | . . 1 . 1 . Drone Launches . | . . . . . . Drone Recoveries . | . . . . . . Exploration | -11 -10 -10 -9 -9 -8 ------------- Run | Yrd Mat Min Mat Min Mat Turns Passed 1502 | 58 101 411 277 353 302 Spaces Moved 1145 | 53 81 244 141 376 250 Core 59 | 26 . . 10 . 23 Treads 188 | . . . 79 109 . Legs 346 | 27 81 233 5 . . Wheels 58 | . . 11 47 . . Hover 209 | . . . . . 209 Flight 285 | . . . . 267 18 Fastest Speed 37 | 50 120 90 90 37 37 Average Speed 93 | 85 120 118 141 80 55 Slowest Speed 300 | 120 120 190 300 160 150 Overloaded Moves . | . . . . . . Propulsion Burnouts . | . . . . . . Robots Hopped . | . . . . . . Cave-ins Triggered . | . . . . . . Exploration Rate (%) 34 | 3 20 61 20 68 32 Regions Visited 5 Branch Regions 2 Pre-discovered Areas 1 | . . 1 . . . Known Exits Taken . | . . . . . . Unknown Exits Taken 5 | 1 1 1 1 1 . Scrap Searched 2 | . . 1 . 1 . Spaces Dug . | . . . . . . Terrain Destroyed 110 | . . 88 7 2 13 Melee . | . . . . . . Projectile 7 | . . . . 2 5 AOE 103 | . . 88 7 . 8 Terrain Rammed . | . . . . . . Walls Destroyed . | . . . . . . Machines Disabled . | . . . . . . Actions | -11 -10 -10 -9 -9 -8 --------- Run | Yrd Mat Min Mat Min Mat Total 1439 | 64 84 330 190 420 351 Wait 96 | . . 59 . 22 15 Move 1140 | 52 80 243 140 375 250 Hop . | . . . . . . Pick Up 33 | 6 2 . 14 3 8 Fast Attach 10 | 3 . . 1 3 3 Attach 30 | 3 1 3 10 3 10 Detach 1 | . . . . 1 . Swap 9 | . 1 1 2 5 . Drop 10 | . . . 2 3 5 Fire 107 | . . 23 21 3 60 Melee . | . . . . . . Ram . | . . . . . . Kick 1 | . . 1 . . . Crush 2 | . . . . 2 . Escape Stasis . | . . . . . . Rewire . | . . . . . . Trap . | . . . . . . Miscellaneous . | . . . . . . Route ------- -11/Scrapyard -10/Materials -10/Mines -9/Materials -9/Mines -8/Materials History --------- Turn | Location | Event 12 | -11/Scrapyard | Discovered new exit (range 15) 59 | -11/Scrapyard | Entered Materials 118 | -10/Materials | Discovered new exit (range 8) 160 | -10/Materials | Entered Mines 317 | -10/Mines | Build established: Mutant 472 | -10/Mines | Discovered new exit (range 15) 550 | -10/Mines | Core integrity fell below 50% 571 | -10/Mines | Entered Materials 571 | -9/Materials | Evolved 2 slots: Power x1, Utility x1 660 | -9/Materials | Core integrity fell below 50% 690 | -9/Materials | Lost 9 parts (2p2n2u3w) 833 | -9/Materials | Discovered new exit (range 5) 848 | -9/Materials | Entered Mines 853 | -9/Mines | Met a Derelict bent on vengeance 880 | -9/Mines | Found a hidden stash of uninstalled traps 896 | -9/Mines | Met a Derelict who couldn't figure out how to use a Trap Extractor 1159 | -9/Mines | Core integrity fell below 20% 1163 | -9/Mines | Lost 4 parts (1n2u1w) 1198 | -9/Mines | Discovered new exit (range 9) 1200 | -9/Mines | Learned Materials emergency access door positions 1201 | -9/Mines | Entered Materials 1201 | -8/Materials | Evolved 2 slots: Utility x1, Weapon x1 1439 | -8/Materials | Core integrity fell below 50% 1488 | -8/Materials | Core integrity fell below 20% 1503 | -8/Materials | Destroyed by G-47 Trooper with Particle Gun Last Messages --------------- 01437_ U-05 Engineer lays Concrete. 01439_ U-05 Engineer builds a Wall. 01447_ Acquired Particle Cannon. 01455_ Shock Rifle destroyed. 01461_ Imp. Heat Sink melted. 01461_ G-47 Trooper destroyed. 01463_ Slug penetrates Wall. 01470_ Acquired Particle Gun. 01479_ Particle Cannon destroyed. 01479_ G-50 Soldier destroyed. 01480_ Acquired 62 matter. 01491_ Beam Rifle melted. 01491_ Heat Sink melted. 01491_ Y-45 Defender destroyed. 01492_ Acquired 52 matter. 01495_ G-47 Trooper destroyed. 01496_ Acquired 41 matter. 01501_ G-47 Trooper destroyed. 01502_ Acquired 38 matter. 01502_ Slug penetrates Wall. Map ----- +----------------------------------------------------+ | #??????????# #?????????????????????? | | "" """ ############ #?????????????????????? | | "" """ % #####+#########???????? | | "" """ % ??????? | | % ??????? | | ############ = ??????? | | ######### #??????????##"# #############????????? | | ????????# #??????????#" %%%[#?????????????????? | | ????????# #??????????#" ! #?????????????????? | | ????????# #??????????#" #?????????????????? | | ????????# #???????????# #?????????????????? | | ????????# #???????????# [ #?????????????????? | | ????????# +???????????# [[ #?????????????????? | | ????????# #????????######+######???????????????? | | ????????# #????????# #???????????????? | | ????????# #????+???# ! #???????????????? | | ????????# ?????????# #???????????????? | | ????????? ?????????+ """ """ #???????????????? | | ?????????????????????# ! """ """ #???????????????? | | ?????????????????????# """ """ #???????????????? | | ?????????????????????# #???????????????? | | ?????????????????????#######/#####???????????????? | | ?????????????????????###### #??????????????????? | | ?????????????????????# # #??????????????????? | | ?????????????????????# "=# #??????????????????? | | ?????????????????????# T@g% #??????????????????? | | ?????????????????????# "=#= #??????????????????? | | ?????????????????????# # #??????????????????? | | ?????????????????????###### #??????????????????? | | ?????????????????????????? #?????????????????? | | ?????????????????????????? #?????????????????? | | ?????????????????????????? ?????????????????? | | ?????????????????????????? ##????????????????? | | ?????????????????????????? #?????????????????? | | ?????????????????????????###/###?????????????????? | | ???????????????????????????? ???????????????????? | | ????????????????????????????""???????????????????? | | ????????????????????????????""???????????????????? | | ?????????????????????????????????????????????????? | | ?????????????????????????+???????????????????????? | | ?????????????????????????????????????????????????? | | ?????????????????????????????????????????????????? | | ?????????????????????????????????????????????????? | | ?????????????????????????????????????????????????? | | ?????????????????????????????????????????????????? | | ?????????????????????????????????????????????????? | | ?????????????????????????????????????????????????? | | ?????????????????????????????????????????????????? | | ?????????????????????????????????????????????????? | | ?????????????????????????????????????????????????? | +----------------------------------------------------+ Best States ------------- Heat Dissipation 31 Energy Generation 23 Energy Capacity 265 Matter Stores 268 Matter Capacity 300 Sight Range 16 Robot Scan Range 14 Terrain Scan Density 110 ECM Strength 1 Jamming Range 12 Evasion (%) 62 Targeting Accuracy 8 Recoil Reduction 2 Item Schematics ----------------- None Robot Schematics ------------------ None Fabricated ------------ Nothing Alien Tech Used ----------------- None Achievements -------------- Universal Adapter Challenges ------------ None Game ------ Seed SwordPhaseExtractor Manual? 0 Play Time 00:22:17 Cumulative 12.7 hours Start 2024.06.29 @ 11:43:33 End 2024.06.29 @ 12:02:28 Sessions 1 Manual Loads 0 Difficulty Rogue Special Mode None Game No. 58 Rogue 58 Adventurer 0 Explorer 0 Win Type - Total 0 Types 0/0/0/0/0/0/0/0/0 Lore% 5 Gallery% 17 Achievement% 12 Wizard Run 0 Options --------- Layout 1 ASCII 0 Keyboard 0 Movement Mouse Keybinds 0 Fullscreen 1 Font 24/Smallcaps Map View 50x35 Zoom Use 0% Tactical HUD 1 Map Filters NONE Filters NONE Steam 1 RUN: dcca7d48-e3e9-4ca0-bea1-8c61e826dd09